Cogmind - Beta 13 @@@ ROGUE MODE // 2024.04.13 @ 19:06:15 Player: m1m1c Result: Destroyed by H-61 Shepherd with Heavy Assault Cannon Performance ------------- Evolutions (3) 1500 Regions Visited (6) 1200 Robots Destroyed (20) 100 Value Destroyed (591) 591 Prototype IDs (2) 40 Alien Tech Used (0) 0 Bonus (570) 570 TOTAL SCORE: 4001 Bonus ------- Follower Combat Kills 70 Entered DSFs 500 Cogmind --------- Core Integrity 0/700 Matter 137/300 Energy 100/100 System Corruption 0% Temperature Cool (0) Movement Core (50) Location -7/DSF Parts ------- > --- POWER (1) -------- (None) > --- PROPULSION (5) --- (None) > --- UTILITY (5) ------ Core Analyzer > --- WEAPON (2) ------- (None) > --- INVENTORY (5) ---- Nuclear Core Small Storage Unit Targeting Computer Cloaking Device Peak State ------------ > --- POWER ------------ Light Nuclear Core > --- PROPULSION ------- Improved Hover Unit Improved Hover Unit Improved Hover Unit Improved Hover Unit > --- UTILITY ---------- Small Storage Unit Weight Redist. System Experimental Sensor Array Core Analyzer Improved Utility Shielding > --- WEAPON ----------- EM Pulse Cannon > --- INVENTORY -------- Nuclear Core Hover Unit Flight Unit Flight Unit Targeting Computer Improved Light Armor Plating [Rating: 34] Favorites ----------- Power Light Ion Engine Engine Light Ion Engine Power Core Nuclear Core Propulsion Hover Unit Leg Aluminum Leg Hover Unit Hover Unit Flight Unit Flight Unit Utility Small Storage Unit Device Experimental Sensor Array Storage Small Storage Unit Processor Core Analyzer Protection Propulsion Shielding Weapon Medium Laser Energy Gun Medium Laser Energy Cannon Beam Cannon Ballistic Gun Assault Rifle Launcher Rocket Launcher Build | -11 -10 -9 -9 -8 -7 -7 ------- Run | Yrd Mat Mat Min Mat Fac DSF Slots Evolved 6 | . . 2 . 2 2 . Power . | . . . . . . . Propulsion 3 | . . 2 . . 1 . Utility 3 | . . . . 2 1 . Weapon . | . . . . . . . Parts Attached 65 | 7 7 6 4 26 3 12 Power 13 | 1 1 . 1 6 1 3 Engine 4 | 1 . . 1 2 . . Core 9 | . 1 . . 4 1 3 Reactor . | . . . . . . . Propulsion 23 | 2 2 5 . 8 1 5 Treads . | . . . . . . . Leg 2 | 2 . . . . . . Wheel . | . . . . . . . Hover 12 | . 2 5 . 4 1 . Flight 9 | . . . . 4 . 5 Utility 13 | 1 2 1 1 6 1 1 Device 5 | . 2 . 1 2 . . Storage 1 | 1 . . . . . . Processor 1 | . . . . 1 . . Hackware . | . . . . . . . Protection 6 | . . 1 . 3 1 1 Artifact . | . . . . . . . Weapon 16 | 3 2 . 2 6 . 3 Energy Gun 5 | 1 1 . . 3 . . Energy Cannon 5 | . 1 . . 3 . 1 Ballistic Gun 5 | 2 . . 1 . . 2 Ballistic Cannon . | . . . . . . . Launcher 1 | . . . 1 . . . Special Weapon . | . . . . . . . Impact Weapon . | . . . . . . . Slashing Weapon . | . . . . . . . Piercing Weapon . | . . . . . . . Special Melee Weapon . | . . . . . . . Unidentified Prototypes 2 | . . . 2 . . . Parts Lost 27 | . 1 4 1 5 . 16 Power 4 | . . . 1 . . 3 Propulsion 15 | . . 3 . 3 . 9 Utility 3 | . . . . 1 . 2 Weapon 5 | . 1 1 . 1 . 2 Highest Loss Streak 8 | . 1 3 4 2 . 8 To Critical Strikes . | . . . . . . . Average Slot Usage (%) 88 | . 92 97 99 82 76 66 Engine 6 | . 12 . 10 1 . . Core 3 | . 1 11 . 7 7 4 Leg 6 | . 22 . . . . . Hover 22 | . 4 43 44 22 30 7 Flight 2 | . . . . 3 . 18 Device 9 | . 10 . 7 11 15 14 Storage 10 | . 14 11 11 9 7 3 Processor 3 | . . . . 9 7 7 Protection 4 | . . 11 3 5 7 6 Energy Gun 6 | . 10 11 11 2 . . Energy Cannon 3 | . 5 10 . 5 . . Ballistic Gun 3 | . 9 . 3 . . 1 Launcher 3 | . . . 7 5 . . Naked Turns . | . . . . . . . Heaviest Build 26 | 11 16 16 20 26 13 19 Greatest Support 34 | 20 20 24 24 34 28 28 Greatest Overweight (x) 5 | 2 3 . . 3 . 5 Average Overweight (x) . | . . . . . . . Largest Inventory Capacity 8 | 8 8 8 8 8 8 8 Average Capacity 7 | 7 8 8 8 8 8 6 Most Carried 8 | 2 8 7 8 8 8 7 Average Carried 5 | 1 4 5 7 6 7 4 Final Capacity 8 | 8 8 8 8 8 8 5 Final Carried 8 | 2 8 4 8 8 7 4 Class Distribution -------------------- 91% | Mutant 6% | Scavenger-Mutant Dominant Class ---------------- Mutant | -10/Materials Mutant | -9/Materials Mutant | -9/Mines Mutant | -8/Materials Mutant | -7/Factory Scavenger-Mutant | -7/DSF Resources | -11 -10 -9 -9 -8 -7 -7 ----------- Run | Yrd Mat Mat Min Mat Fac DSF Matter Collected 624 | 232 181 . 40 111 . 60 Remotely . | . . . . . . . Salvage Created 727 | . 320 . 47 291 . 69 Parts 54 | . 21 . 5 18 . 10 Haulers Intercepted 1 | . 1 . . . . . Recyclers Shooed . | . . . . . . . Parts Field Recycled . | . . . . . . . Retrieved Matter . | . . . . . . . Parts Self-Destructed . | . . . . . . . Prevented . | . . . . . . . Kills | -11 -10 -9 -9 -8 -7 -7 ------- Run | Yrd Mat Mat Min Mat Fac DSF Combat Hostiles Destroyed 16 | . 6 . 3 4 . 3 Guns 7 | . 2 . 3 . . 2 Cannons 8 | . 4 . . 3 . 1 Classes Destroyed 10 | . 3 . 1 4 . 2 Worker 1 | . . . . 1 . . Builder 1 | . 1 . . . . . Hauler 1 | . 1 . . . . . Watcher 1 | . . . . 1 . . Swarmer 3 | . . . 3 . . . Cutter 2 | . . . . . . 2 Grunt 6 | . 6 . . . . . Sentry 3 | . . . . 3 . . Specialist 1 | . . . . . . 1 Hunter 1 | . . . . 1 . . Best Kill Streak 3 | . 2 . 3 2 . 2 Combat Bots Only 3 | . 2 . 3 1 . 2 Max Kills in Single Turn 1 | . 1 . 1 1 . 1 Gunslinging . | . . . . . . . Exploded . | . . . . . . . Melee . | . . . . . . . Uniques/NPCs Destroyed . | . . . . . . . Combat | -11 -10 -9 -9 -8 -7 -7 -------- Run | Yrd Mat Mat Min Mat Fac DSF Hostile Shots Fired 334 | . 70 48 12 37 . 167 Missed 121 | . 20 20 2 14 . 65 Damage Taken 2905 | . 569 331 84 324 . 1597 Core 1040 | . 179 57 14 82 . 708 Absorbed by Shields . | . . . . . . . Redirected to Shielding 155 | . . 33 4 9 . 109 Core Remaining (%) 73 | 100 28 . 82 85 . . Volleys Fired 72 | . 39 . 6 18 . 9 Largest 2 | . 2 . 1 2 . 2 Hottest 110 | . 110 . 50 108 . 63 Shots Fired 103 | . 65 . 6 22 . 10 Gun 67 | . 43 . 6 12 . 6 Cannon 36 | . 22 . . 10 . 4 Launcher . | . . . . . . . Special . | . . . . . . . Kinetic 32 | . 26 . . . . 6 Thermal 53 | . 39 . 6 8 . . Explosive . | . . . . . . . Electromagnetic 18 | . . . . 14 . 4 Robot Hit Streak 8 | . 5 . 8 6 . 7 Robot Miss Streak 5 | . 3 . 1 2 . 5 Penetration Max . | . . . . . . . Secondary Targets . | . . . . . . . Shots Hit Robots 62 | . 38 . 5 14 . 5 Core Hits 31 | . 15 1 3 7 . 5 Critical Kills . | . . . . . . . Critical Parts Destroyed . | . . . . . . . Critical Strikes 3 | . . . 1 2 . . Burn 2 | . . . 1 1 . . Corrupt 1 | . . . . 1 . . Melee Attacks . | . . . . . . . Impact . | . . . . . . . Slashing . | . . . . . . . Piercing . | . . . . . . . Sneak Attacks . | . . . . . . . Combat Hostiles . | . . . . . . . Follow-up Attacks . | . . . . . . . Damage Inflicted 1083 | . 507 86 63 325 . 102 Guns 528 | . 261 . 63 123 . 81 Cannons 457 | . 246 . . 190 . 21 Explosions . | . . . . . . . Melee . | . . . . . . . Ramming 98 | . . 86 . 12 . . Kinetic 253 | . 172 . . . . 81 Thermal 484 | . 335 . 63 86 . . Explosive . | . . . . . . . Electromagnetic 248 | . . . . 227 . 21 Impact . | . . . . . . . Slashing . | . . . . . . . Piercing . | . . . . . . . Highest Corruption . | . . . . . . . Average Corruption . | . . . . . . . Corruption Purged . | . . . . . . . Corruption Blocked . | . . . . . . . Overload Shots . | . . . . . . . Overflow Damage 9 | . . . . 9 . . Projectiles 9 | . . . . 9 . . Explosions . | . . . . . . . Melee . | . . . . . . . Knockbacks 1 | . . 1 . . . . Impact 1 | . . 1 . . . . Kinetic . | . . . . . . . Secondary . | . . . . . . . Self-Inflicted Damage 46 | . . 40 . 6 . . Shots . | . . . . . . . Rammed 14 | . . 12 . 2 . . Targets Rammed 14 | . . 12 . 2 . . Kicked . | . . . . . . . Crushed . | . . . . . . . Highest Temperature 268 | . 268 7 68 177 . . Average Temperature 75 | . 93 4 42 55 . . Received Heat Transfer 639 | . 315 90 . 72 . 162 Siege Activations . | . . . . . . . Robots Corrupted . | . . . . . . . Combat Hostiles . | . . . . . . . Parts Fried 1 | . . . . 1 . . Impact Corruptions . | . . . . . . . Robots Melted 1 | . . . . 1 . . Combat Hostiles 1 | . . . . 1 . . Parts Melted 7 | . 1 . 1 5 . . Heat Transferred 1310 | . 718 . 259 333 . . Parts Sabotaged . | . . . . . . . Parts Stolen . | . . . . . . . Parts Stripped . | . . . . . . . Power Chain Reactions . | . . . . . . . Alert | -11 -10 -9 -9 -8 -7 -7 ------- Run | Yrd Mat Mat Min Mat Fac DSF Peak Influence 274 | . 193 32 72 274 6 50 Initial 27 | . . 27 12 27 6 4 Average 72 | . 56 22 71 146 6 14 Maximum Alert Level 1 | . . . . 1 . . Low Security (%) 96 | 100 100 100 100 88 100 100 Level 1 3 | . . . . 11 . . Level 2 . | . . . . . . . Level 3 . | . . . . . . . Level 4 . | . . . . . . . Level 5 . | . . . . . . . High Security . | . . . . . . . Max Security . | . . . . . . . Squads Dispatched 6 | . 2 1 1 . . 2 Investigation 2 | . 1 . 1 . . . Extermination . | . . . . . . . Reinforcement 4 | . 1 1 . . . 2 Assault . | . . . . . . . Garrison . | . . . . . . . Intercept . | . . . . . . . Searches Triggered . | . . . . . . . Construction Impeded . | . . . . . . . Haulers Reinforced . | . . . . . . . Active Scanning Responses . | . . . . . . . Cargo Convoy Interrupts . | . . . . . . . Stealth | -11 -10 -9 -9 -8 -7 -7 --------- Run | Yrd Mat Mat Min Mat Fac DSF Distress Signals 3 | . 1 . . 2 . . Communications Jammed . | . . . . . . . Distress Signals . | . . . . . . . Times Spotted 55 | . 9 12 3 15 . 16 Peak Tracking Total 11 | . 3 10 3 4 . 11 Tactical Retreats 6 | . 1 1 . 1 . 3 Traps | -11 -10 -9 -9 -8 -7 -7 ------- Run | Yrd Mat Mat Min Mat Fac DSF Traps Triggered 1 | . 1 . . . . . Indirectly . | . . . . . . . Trap Hack Attempts . | . . . . . . . Triggered . | . . . . . . . Disarmed . | . . . . . . . Reprogrammed . | . . . . . . . Reused . | . . . . . . . Traps Extracted . | . . . . . . . Installed . | . . . . . . . Triggered . | . . . . . . . Machines | -11 -10 -9 -9 -8 -7 -7 ---------- Run | Yrd Mat Mat Min Mat Fac DSF Machines Disabled 3 | . 3 . . . . . Max in Single Turn 1 | . 1 . . . . . Machines Repaired . | . . . . . . . Machines Dismantled . | . . . . . . . Machines Sabotaged . | . . . . . . . Overloaded Fab Kills . | . . . . . . . Hacking | -11 -10 -9 -9 -8 -7 -7 --------- Run | Yrd Mat Mat Min Mat Fac DSF Machines Accessed 5 | . . . 1 3 1 . Terminals 3 | . . . . 2 1 . Fabricators . | . . . . . . . Repair Stations . | . . . . . . . Recycling Units . | . . . . . . . Scanalyzers 1 | . . . . 1 . . Garrison Access . | . . . . . . . Total Hacks 8 | . . . 1 6 1 . Successful 6 | . . . 1 4 1 . Failed 2 | . . . . 2 . . Catastrophic 2 | . . . . 2 . . Database Lockouts . | . . . . . . . Manual . | . . . . . . . Terminals 5 | . . . . 4 1 . Fabricators . | . . . . . . . Repair Stations . | . . . . . . . Recycling Units . | . . . . . . . Scanalyzers 2 | . . . . 2 . . Garrison Access . | . . . . . . . Terminal Hacks 4 | . . . 1 2 1 . Open Door 1 | . . . 1 . . . Open DSF 1 | . . . . . 1 . Alert Level 1 | . . . . 1 . . Unreport Threat 1 | . . . . 1 . . Fabricator Hacks . | . . . . . . . Repair Station Hacks . | . . . . . . . Recycling Unit Hacks . | . . . . . . . Scanalyzer 2 | . . . . 2 . . Insert Component 1 | . . . . 1 . . Analyze 1 | . . . . 1 . . Garrison Access Hacks . | . . . . . . . Unauthorized Hacks . | . . . . . . . Terminals . | . . . . . . . Fabricators . | . . . . . . . Repair Stations . | . . . . . . . Recycling Units . | . . . . . . . Scanalyzers . | . . . . . . . Garrison Access . | . . . . . . . Data Cores Recovered . | . . . . . . . Used . | . . . . . . . Hacking Detections 3 | . . . . 3 . . Full Trace Events . | . . . . . . . Feedback Events . | . . . . . . . Feedback Blocked . | . . . . . . . Robot Schematics Acquired . | . . . . . . . Robots Built . | . . . . . . . Authchips . | . . . . . . . Time . | . . . . . . . Total Robot Build Rating . | . . . . . . . Part Schematics Acquired 1 | . . . . 1 . . Parts Built . | . . . . . . . Authchips . | . . . . . . . Time . | . . . . . . . Total Part Build Rating . | . . . . . . . Parts Repaired . | . . . . . . . Time . | . . . . . . . Parts Recycled . | . . . . . . . Recycled Matter . | . . . . . . . Retrieved Matter . | . . . . . . . Retrieved Components . | . . . . . . . Parts Scanalyzed 1 | . . . . 1 . . Part Schematics Acquired 1 | . . . . 1 . . Parts Damaged . | . . . . . . . Bothacking | -11 -10 -9 -9 -8 -7 -7 ------------ Run | Yrd Mat Mat Min Mat Fac DSF Used RIF Installer . | . . . . . . . Robots Hacked . | . . . . . . . Non-combat . | . . . . . . . Combat . | . . . . . . . Robot Hacks Applied . | . . . . . . . Relay Couplers Released . | . . . . . . . Fabnet Peak Effective % . | . . . . . . . Robots Rewired . | . . . . . . . Allies Hacked . | . . . . . . . Hacks Repelled . | . . . . . . . Allies | -11 -10 -9 -9 -8 -7 -7 -------- Run | Yrd Mat Mat Min Mat Fac DSF Total Allies 2 | . . . 2 . . . Largest Group 2 | . . . 2 2 . . Highest-Rated Group 45 | . . . 45 45 . . Highest-Rated Ally 31 | . . . 31 31 . . Total Orders . | . . . . . . . Ally Attacks 12 | . . . . 12 . . Total Damage 192 | . . . . 192 . . Kills 2 | . . . . 2 . . Allies Corrupted . | . . . . . . . Allies Melted . | . . . . . . . Intel | -11 -10 -9 -9 -8 -7 -7 ------- Run | Yrd Mat Mat Min Mat Fac DSF Robot Analysis Total . | . . . . . . . Derelict Logs Recovered 1 | . . . 1 . . . Drone Launches . | . . . . . . . Drone Recoveries . | . . . . . . . Exploration | -11 -10 -9 -9 -8 -7 -7 ------------- Run | Yrd Mat Mat Min Mat Fac DSF Turns Passed 1700 | 82 477 113 357 451 76 144 Spaces Moved 2118 | 61 321 194 678 452 149 263 Core 42 | 14 4 . . . . 24 Treads . | . . . . . . . Legs 289 | 47 242 . . . . . Wheels . | . . . . . . . Hover 1468 | . 75 194 678 347 149 25 Flight 319 | . . . . 105 . 214 Fastest Speed 25 | 50 56 48 48 37 48 25 Average Speed 64 | 115 108 48 48 78 48 40 Slowest Speed 240 | 150 200 52 48 240 48 235 Overloaded Moves . | . . . . . . . Propulsion Burnouts . | . . . . . . . Robots Hopped 2 | . . . . 2 . . Cave-ins Triggered . | . . . . . . . Exploration Rate (%) 36 | 4 42 13 87 24 2 80 Regions Visited 6 Branch Regions 1 Pre-discovered Areas 1 | . . . 1 . . . Known Exits Taken 1 | . . . . . 1 . Unknown Exits Taken 5 | 1 1 1 1 1 . . Scrap Searched 1 | . . . 1 . . . Spaces Dug . | . . . . . . . Terrain Destroyed . | . . . . . . . Melee . | . . . . . . . Projectile . | . . . . . . . AOE . | . . . . . . . Terrain Rammed . | . . . . . . . Walls Destroyed . | . . . . . . . Machines Disabled . | . . . . . . . Actions | -11 -10 -9 -9 -8 -7 -7 --------- Run | Yrd Mat Mat Min Mat Fac DSF Total 2344 | 69 387 213 703 532 152 288 Wait 9 | . . . 6 3 . . Move 2108 | 60 320 193 677 447 148 263 Hop 2 | . . . . 2 . . Pick Up 35 | 2 12 1 6 12 . 2 Fast Attach 26 | 6 5 . 3 5 . 7 Attach 34 | . 2 6 1 18 2 5 Detach 14 | . . 1 1 10 1 1 Swap 5 | 1 . . . 3 1 . Drop 25 | . 9 . 3 12 . 1 Fire 72 | . 39 . 6 18 . 9 Melee . | . . . . . . . Ram 14 | . . 12 . 2 . . Kick . | . . . . . . . Crush . | . . . . . . . Escape Stasis . | . . . . . . . Rewire . | . . . . . . . Trap . | . . . . . . . Miscellaneous . | . . . . . . . Route ------- -11/Scrapyard -10/Materials -9/Materials -9/Mines -8/Materials -7/Factory -7/DSF (discovered 1 exit: [*Fac]) History --------- Turn | Location | Event 22 | -11/Scrapyard | Discovered new exit (range 15) 83 | -11/Scrapyard | Entered Materials 309 | -10/Materials | Build established: Mutant 448 | -10/Materials | Discovered new exit (range 3) 480 | -10/Materials | Core integrity fell below 50% 560 | -10/Materials | Entered another Materials area 560 | -9/Materials | Evolved 2 slots: Propulsion x2 661 | -9/Materials | Discovered new exit (range 9) 673 | -9/Materials | Entered Mines 712 | -9/Mines | Lost 4 parts (1p2n1w) 795 | -9/Mines | Found a damaged Exp. Sensor Array with a note attached 797 | -9/Mines | Found Prototype Device 797 | -9/Mines | Identified Exp. Sensor Array 883 | -9/Mines | Met a Derelict shopkeep closing up shop 1000 | -9/Mines | Discovered new exit (range 9) 1030 | -9/Mines | Entered Materials 1030 | -8/Materials | Accompanied by 2 allies 1030 | -8/Materials | Evolved 2 slots: Utility x2 1035 | -8/Materials | Led the pair of lost Derelicts to an unsafe place 1452 | -8/Materials | Discovered new exit (range 10) 1481 | -8/Materials | Entered Factory 1481 | -7/Factory | Evolved 2 slots: Propulsion x1, Utility x1 1556 | -7/Factory | Identified exit to DSF 1557 | -7/Factory | Entered DSF 1589 | -7/DSF | Additional patrols routed to DSF 1646 | -7/DSF | Discovered new exit (range 16) 1649 | -7/DSF | Lost 8 parts (2p4n2w) 1694 | -7/DSF | Core integrity fell below 50% 1699 | -7/DSF | Core integrity fell below 20% 1701 | -7/DSF | Destroyed by H-61 Shepherd with Heavy Assault Cannon Last Messages --------------- Acquired Nuclear Core. ALERT: Suspicious intruders detected, dispatching Cutter reinforcements to area. C-30 ARC bursts open, deploying its payload. S-27 Virus unfolds itself. Surge Thruster destroyed. Flight Unit destroyed. Penetrated by Slug. Flight Unit destroyed. Surge Thruster destroyed. Penetrated by Slug. Lgt. Nuclear Core destroyed. Imp. Light Armor Plating blasted off. Exp. Sensor Array destroyed. Slug penetrates Y-54 Guardian. Knocked back. Imp. Utility Shielding destroyed. C-17 Slicer knocked back. Weight Redist. System severed. Knocked back. Map ----- +----------------------------------------------------+ | ?????????????????????????????????????? | | ?????????????????????????????????????? | | ?????????????????????????????????????? | | ?????????????????????????????????????? | | ??????????????????????????""?????????? | | ?????????????????????????#"#?????????? | | #???????#########???????##"####??????? | | #########[[ ! #########"""""#??????? | | ##*=# # [%%! # #]]##"""""#??????? | | " !/ <""##"????? | | %" = """""????? | | ##* #***### ###]]]#]]## ""###????? | | ##**#***### ###]]]#]]### ###??????? | | ######## || [[########## ##???????? | | #??????#|| [[#??????# ]#???????? | | #??????#|| [[#??????# ]#???????? | | ##??????### ###??????### ##???????? | | #??????#!! !!#??????#]] #???????? | | #??????#!! !!#??????#]] #???????? | | #???????!! !!#??????#]] #???????? | | ########### ############ ###??????? | | # #!!!### ###!!!#!!!## #??????? | | #% #!!!## a ## !!#!!!## #??????? | | !!#??????? | | % H s !!#??????? | | !% c!c c @ !!#??????? | | # ///## #!!!# ##% #??????? | | # #///### ###!!!# ## #??????? | | #########?# #?########## ###??????? | | ?????????! [[???????# /#???????? | | ????????#!! [[#??????# /#???????? | | ????????#!! [[#??????# /#???????? | | ????????### ###??????### ##???????? | | ??????????! !??????????/ /????????? | | ??????????! !??????????/ /#???????? | | ?????????!! !!?????????# ##???????? | | ?????????## ##?????????# #????????? | | ??????????# #?????????? "????????? | | ?????????? ?????????? "????????? | | ?????????? ?????????? "????????? | | ??????????!!!! ??????????""""????????? | | ??????????!!!! ??????????""""????????? | | ?????????????????????????#"##????????? | | ?????????????????????????????????????? | | ?????????????????????????????????????? | | ?????????????????????????????????????? | | ?????????????????????????????????????? | | ?????????????????????????????????????? | | ?????????????????????????????????????? | | ?????????????????????????????????????? | +----------------------------------------------------+ Best States ------------- Heat Dissipation 34 Energy Generation 14 Energy Capacity 280 Matter Stores 300 Matter Capacity 300 Sight Range 16 Robot Scan Range 20 Terrain Scan Density 10 Additional Mass Support 6 Armor Coverage 150 Propulsion Shielding 33 Utility Shielding 66 Evasion (%) 65 Core Analysis 6 Item Schematics ----------------- Flight Unit | -8/Materials | Scanalyzed Robot Schematics ------------------ None Fabricated ------------ Nothing Alien Tech Used ----------------- None Achievements -------------- Can't Catch Me Challenges ------------ None Game ------ Seed GhostControlMicroactuators Manual? 0 Play Time 00:29:35 Cumulative 10.8 hours Start 2024.04.13 @ 18:39:09 End 2024.04.13 @ 19:06:15 Sessions 1 Manual Loads 0 Difficulty Rogue Special Mode None Game No. 43 Rogue 43 Adventurer 0 Explorer 0 Win Type - Total 0 Types 0/0/0/0/0/0/0/0/0 Lore% 11 Gallery% 16 Achievement% 14 Wizard Run 0 Options --------- Layout 1 ASCII 1 Keyboard 0 Movement Arrows Keybinds 0 Fullscreen 1 Font 24/Smallcaps Map View 50x35 Zoom Use 0% Tactical HUD 0 Map Filters NONE Filters NONE Steam 1 RUN: f5db6e26-6723-4aef-b0d1-ce52f6495da0